Cogmind - Beta 15 @@@ ROGUE MODE // 2025.06.23 @ 13:56:24 Player: 7604 Result: Destroyed by X8-U3C(R) with Subdweller Machine Gun Performance ------------- Evolutions (0) 0 Regions Visited (2) 400 Robots Destroyed (13) 65 Value Destroyed (289) 289 Prototype IDs (0) 0 Alien Tech Used (0) 0 Bonus (0) 0 TOTAL SCORE: 754 Bonus ------- None Cogmind --------- Core Integrity 0/250 Matter 242/300 Energy 96/100 System Corruption 1% Temperature Cool (0) Movement Treading (240) Ox1 Location -10/Subcaves Parts ------- > --- POWER (1) -------- (None) > --- PROPULSION (2) --- Light Treads > --- UTILITY (2) ------ Large Storage Unit Seismic Detector > --- WEAPON (2) ------- Subdweller Machine Gun Battle Cannon > --- INVENTORY (15) --- Ion Engine Ion Engine Ion Engine Subdweller Power Source Compact Wheel Compact Wheel Seismic Detector Riot Gun Small Laser Light Assault Rifle Subdweller Machine Gun Mining Laser Peak State ------------ > --- POWER ------------ Ion Engine > --- PROPULSION ------- Light Treads Light Treads > --- UTILITY ---------- Large Storage Unit Seismic Detector > --- WEAPON ----------- Subdweller Machine Gun Battle Cannon > --- INVENTORY -------- Ion Engine Ion Engine Ion Engine Compact Wheel Compact Wheel Seismic Detector Riot Gun Small Laser Light Assault Rifle Subdweller Machine Gun Mining Laser [Rating: 10] Favorites ----------- Power Ion Engine Engine Ion Engine Propulsion Light Treads Treads Light Treads Leg Aluminum Leg Utility Seismic Detector Device Seismic Detector Storage Large Storage Unit Weapon Light Assault Rifle Energy Gun Medium Laser Ballistic Gun Light Assault Rifle Ballistic Cannon Battle Cannon Build | -11 -10 -10 ------- Run | Yrd Mat Sub Slots Evolved . | . . . Power . | . . . Propulsion . | . . . Utility . | . . . Weapon . | . . . Parts Attached 6 | 1 3 2 Power . | . . . Engine . | . . . Core . | . . . Reactor . | . . . Propulsion 2 | . 2 . Treads 2 | . 2 . Leg . | . . . Wheel . | . . . Hover . | . . . Flight . | . . . Utility 2 | 1 1 . Device 1 | 1 . . Storage 1 | . 1 . Processor . | . . . Hackware . | . . . Protection . | . . . Artifact . | . . . Weapon 2 | . . 2 Energy Gun . | . . . Energy Cannon . | . . . Ballistic Gun 1 | . . 1 Ballistic Cannon 1 | . . 1 Launcher . | . . . Special Weapon . | . . . Impact Weapon . | . . . Slashing Weapon . | . . . Piercing Weapon . | . . . Special Melee Weapon . | . . . Unidentified Prototypes . | . . . Parts Lost 3 | . . 3 Power 1 | . . 1 Propulsion 1 | . . 1 Utility . | . . . Weapon 1 | . . 1 Highest Loss Streak 2 | . . 2 To Critical Strikes . | . . . Average Backups 8 | 6 7 9 Power 2 | 1 1 3 Propulsion 2 | 4 2 2 Utility . | . 1 1 Weapon 2 | 1 2 3 Tool/Special . | . . . Unused Backups 20 | . 6 14 Power 5 | . . 5 Propulsion 6 | . 4 2 Utility 3 | . 2 1 Weapon 6 | . . 6 Tool/Special . | . . . Average Slot Usage (%) 98 | . 100 98 Engine 13 | . 14 13 Treads 23 | . 17 27 Leg 3 | . 10 . Device 13 | . 14 13 Storage 14 | . 14 14 Energy Gun 8 | . 14 5 Ballistic Gun 15 | . 14 16 Ballistic Cannon 3 | . . 5 Peak Build Rating 10 | 7 7 10 Average Rating 7 | 6 7 8 On Entrance 6 | 6 7 7 Naked Turns . | . . . Heaviest Build 33 | 14 29 33 Greatest Support 40 | 20 40 40 Greatest Overweight (x) . | . . . Average Overweight (x) . | . . . Largest Inventory Capacity 15 | 8 15 15 Average Capacity 13 | 8 12 15 Most Carried 12 | 8 8 12 Average Carried 8 | 6 7 9 Final Capacity 15 | 8 15 15 Final Carried 12 | 8 8 12 Class Distribution -------------------- 100% | Mutant Dominant Class ---------------- Mutant | -10/Materials Mutant | -10/Subcaves Resources | -11 -10 -10 ----------- Run | Yrd Mat Sub Matter Collected 299 | 216 40 43 Remotely . | . . . Salvage Created 337 | 82 130 125 Parts 28 | 11 9 8 Haulers Intercepted . | . . . Recyclers Shooed 1 | 1 . . Parts Field Recycled . | . . . Retrieved Matter . | . . . Parts Self-Destructed 4 | . . 4 Prevented . | . . . Kills | -11 -10 -10 ------- Run | Yrd Mat Sub Combat Hostiles Destroyed 9 | . 3 6 Guns 9 | . 3 6 Classes Destroyed 5 | 1 2 2 Tunneler 3 | 3 . . Watcher 1 | . 1 . Swarmer 3 | . . 3 Grunt 3 | . 3 . Subdweller 3 | . . 3 Best Kill Streak 2 | 2 2 2 Combat Bots Only 2 | . 2 2 Max Kills in Single Turn 1 | 1 1 1 Gunslinging . | . . . Exploded . | . . . Melee . | . . . Uniques/NPCs Destroyed . | . . . Combat | -11 -10 -10 -------- Run | Yrd Mat Sub Hostile Shots Fired 76 | . 11 65 Missed 21 | . 1 20 Hits 55 | . 10 45 Projectile 55 | . 10 45 Damage Taken 906 | . 147 759 Core 252 | . 21 231 Absorbed by Shields . | . . . Core Remaining (%) 100 | 100 . . Volleys Fired 45 | 6 10 29 Largest 2 | 2 2 2 Hottest 70 | 70 70 70 Shots Fired 89 | 12 20 57 Gun 81 | 12 20 49 Cannon 8 | . . 8 Launcher . | . . . Special . | . . . Kinetic 57 | 6 10 41 Thermal 32 | 6 10 16 Explosive . | . . . Electromagnetic . | . . . Robot Hit Streak 15 | 6 15 12 Robot Miss Streak 2 | 1 2 2 Penetration Max . | . . . Secondary Targets . | . . . Shots Hit Robots 68 | 11 16 41 Core Hits 22 | 4 8 10 Critical Kills . | . . . Critical Parts Destroyed . | . . . Critical Strikes 2 | . 2 . Burn 2 | . 2 . Melee Attacks . | . . . Impact . | . . . Slashing . | . . . Piercing . | . . . Sneak Attacks . | . . . Combat Hostiles . | . . . Follow-up Attacks . | . . . Damage Inflicted 837 | 119 159 559 Guns 701 | 119 159 423 Cannons 136 | . . 136 Explosions . | . . . Melee . | . . . Ramming . | . . . Kinetic 551 | 44 60 447 Thermal 286 | 75 99 112 Explosive . | . . . Electromagnetic . | . . . Impact . | . . . Slashing . | . . . Piercing . | . . . Highest Corruption 1 | . 1 1 Average Corruption 1 | . 1 1 Corruption Purged . | . . . Corruption Blocked . | . . . Effects 5 | . 3 2 Message Errors 4 | . 2 2 Alerts 1 | . 1 . Overload Shots . | . . . Overflow Damage . | . . . Projectiles . | . . . Explosions . | . . . Melee . | . . . Knockbacks 1 | . . 1 Impact . | . . . Kinetic 1 | . . 1 Secondary . | . . . Self-Inflicted Damage . | . . . Shots . | . . . Rammed . | . . . Targets Rammed . | . . . Kicked . | . . . Crushed . | . . . Highest Temperature 126 | 40 126 . Average Temperature 43 | 19 55 . Received Heat Transfer 141 | . 60 81 Siege Activations . | . . . Martial Activations . | . . . Shielding Activations . | . . . Robots Disrupted . | . . . Combat Hostiles . | . . . Robots Corrupted . | . . . Combat Hostiles . | . . . Parts Fried . | . . . Impact Corruptions . | . . . Robots Melted . | . . . Combat Hostiles . | . . . Parts Melted 2 | . 2 . Heat Transferred 999 | 222 444 333 Parts Sabotaged . | . . . Parts Stolen . | . . . Parts Stripped . | . . . Power Chain Reactions . | . . . Alert | -11 -10 -10 ------- Run | Yrd Mat Sub Maximum Alert Level . | . . . Low Security (%) 100 | 100 100 . Level 1 . | . . . Level 2 . | . . . Level 3 . | . . . Level 4 . | . . . Level 5 . | . . . High Security . | . . . Max Security . | . . . Peak Influence 40 | 5 40 . Initial . | . . . Average 11 | . 15 . Influence Increases 202 | 15 117 70 Destroy 0b10 Robot/C 120 | . 60 60 Destroy 0b10 Robot/NC 20 | 15 5 . Destroy Leader 32 | . 22 10 Select Force Hacks 30 | . 30 . Influence Decreases 202 | 15 107 80 Entered New Map 6 | . . 6 Time Decay 186 | 15 107 64 Lost Part 10 | . . 10 Squads Dispatched 2 | . 2 . Investigation 1 | . 1 . Extermination . | . . . Reinforcement 1 | . 1 . Assault . | . . . Garrison . | . . . Intercept . | . . . Searches Triggered . | . . . Construction Impeded . | . . . Haulers Reinforced . | . . . Active Scanning Responses . | . . . Cargo Convoy Interrupts . | . . . Stealth | -11 -10 -10 --------- Run | Yrd Mat Sub Distress Signals . | . . . Communications Jammed . | . . . Distress Signals . | . . . Times Spotted 12 | . 4 8 Peak Tracking Total 3 | . 2 3 Tactical Retreats . | . . . Traps | -11 -10 -10 ------- Run | Yrd Mat Sub Traps Triggered 1 | . 1 . Indirectly . | . . . Trap Hack Attempts . | . . . Triggered . | . . . Disarmed . | . . . Reprogrammed . | . . . Reused . | . . . Traps Extracted . | . . . Installed . | . . . Triggered . | . . . Machines | -11 -10 -10 ---------- Run | Yrd Mat Sub Machines Disabled . | . . . Max in Single Turn . | . . . Machines Repaired . | . . . Machines Dismantled . | . . . Machines Sabotaged . | . . . Overloaded Fab Kills . | . . . Hacking | -11 -10 -10 --------- Run | Yrd Mat Sub Machines Accessed 2 | . 2 . Terminals 1 | . 1 . Fabricators . | . . . Repair Stations . | . . . Recycling Units 1 | . 1 . Scanalyzers . | . . . Garrison Access . | . . . Total Hacks 7 | . 7 . Successful 3 | . 3 . Failed 4 | . 4 . Catastrophic . | . . . Database Lockouts . | . . . Manual 4 | . 4 . Terminals 2 | . 2 . Fabricators . | . . . Repair Stations . | . . . Recycling Units 5 | . 5 . Scanalyzers . | . . . Garrison Access . | . . . Terminal Hacks . | . . . Fabricator Hacks . | . . . Repair Station Hacks . | . . . Recycling Unit Hacks 1 | . 1 . Retrieve Components 1 | . 1 . Scanalyzer . | . . . Garrison Access Hacks . | . . . Unauthorized Hacks 2 | . 2 . Terminals 1 | . 1 . Botnet 1 | . 1 . Fabricators . | . . . Repair Stations . | . . . Recycling Units 1 | . 1 . Tunnel 1 | . 1 . Scanalyzers . | . . . Garrison Access . | . . . Data Cores Recovered . | . . . Used . | . . . Hacking Detections 2 | . 2 . Full Trace Events . | . . . Feedback Events . | . . . Feedback Blocked . | . . . Robot Schematics Acquired . | . . . Robots Built . | . . . Authchips . | . . . Time . | . . . Total Robot Build Rating . | . . . Part Schematics Acquired . | . . . Parts Built . | . . . Authchips . | . . . Time . | . . . Total Part Build Rating . | . . . Parts Repaired . | . . . Time . | . . . Parts Recycled . | . . . Recycled Matter . | . . . Retrieved Matter . | . . . Retrieved Components 2 | . 2 . Parts Scanalyzed . | . . . Part Schematics Acquired . | . . . Parts Damaged . | . . . Bothacking | -11 -10 -10 ------------ Run | Yrd Mat Sub Used RIF Installer . | . . . Robots Hacked . | . . . Non-combat . | . . . Combat . | . . . Robot Hacks Applied . | . . . Relay Couplers Released . | . . . Fabnet Peak Effective % . | . . . Robots Rewired . | . . . Allies Hacked . | . . . Hacks Repelled . | . . . Allies | -11 -10 -10 -------- Run | Yrd Mat Sub Total Allies . | . . . Largest Group . | . . . Highest-Rated Group . | . . . Highest-Rated Ally . | . . . Total Orders . | . . . Ally Attacks . | . . . Total Damage . | . . . Kills . | . . . Allies Corrupted . | . . . Allies Melted . | . . . Intel | -11 -10 -10 ------- Run | Yrd Mat Sub Active Infowar (turns) 675 | 10 263 402 Seismic 675 | 10 263 402 Robot Analysis Total . | . . . Derelict Logs Recovered 1 | . . 1 Drone Launches . | . . . Drone Recoveries . | . . . Exploration | -11 -10 -10 ------------- Run | Yrd Mat Sub Turns Passed 771 | 84 263 424 Spaces Moved 348 | 21 126 201 Core . | . . . Treads 267 | . 66 201 Legs 81 | 21 60 . Wheels . | . . . Hover . | . . . Flight . | . . . Fastest Speed 120 | 120 120 160 Average Speed 150 | 120 140 160 Slowest Speed 160 | 120 160 160 Overloaded Moves . | . . . Propulsion Burnouts . | . . . Robots Hopped . | . . . Potential Cave-ins . | . . . Cave-ins Triggered . | . . . Exploration Rate (%) 12 | 2 26 9 Regions Visited 2 Branch Regions 1 Pre-discovered Areas 1 | . 1 . Known Exits Taken . | . . . Unknown Exits Taken 2 | 1 1 . Scrap Searched . | . . . Spaces Dug . | . . . Terrain Destroyed . | . . . Melee . | . . . Projectile . | . . . AOE . | . . . Terrain Rammed . | . . . Walls Destroyed . | . . . Machines Disabled . | . . . Actions | -11 -10 -10 --------- Run | Yrd Mat Sub Total 516 | 69 195 252 Wait 105 | 39 52 14 Move 346 | 20 125 201 Hop . | . . . Pick Up 9 | 3 2 4 Fast Attach 1 | . . 1 Attach 2 | 1 . 1 Detach 1 | . . 1 Swap 4 | . 3 1 Drop 3 | . 3 . Fire 45 | 6 10 29 Melee . | . . . Ram . | . . . Kick . | . . . Crush . | . . . Escape Stasis . | . . . Rewire . | . . . Trap . | . . . Miscellaneous . | . . . Route ------- -11/Scrapyard -10/Materials -10/Subcaves History --------- Turn | Location | Event 1 | -11/Scrapyard | Discovered new exit (range 2) 85 | -11/Scrapyard | Entered Materials 312 | -10/Materials | Build established: Mutant 336 | -10/Materials | Discovered new exit (range 8) 348 | -10/Materials | Entered Subcaves 349 | -10/Subcaves | Approached by a straggling Scientist 625 | -10/Subcaves | Learned Materials trap positions 751 | -10/Subcaves | A Subdweller sparked back to life 751 | -10/Subcaves | A Subdweller sparked back to life 751 | -10/Subcaves | A Subdweller sparked back to life 754 | -10/Subcaves | Core integrity fell below 50% 771 | -10/Subcaves | Core integrity fell below 20% 772 | -10/Subcaves | Destroyed by X8-U3C(R) with Subdweller Machine Gun Last Messages --------------- 00710_ Acquired Sub. Power Source. 00722_ NR6W1JE||G E8EAN/CJ<&3= 00726_ Subatomizers dissect the Sub. Monowheel. 00751_ PN-SF4(R) knocked back. 00751_ X8-U3C(R) creaks and sparks as it begins to move. 00751_ PB-1B6(R) creaks and sparks as it begins to move. 00751_ PN-SF4(R) creaks and sparks as it begins to move. 00753_ Subatomizers dissect the Sub. Monowheel, destroying it. 00754_ Ion Engine destroyed. 00759_ PN-SF4(R) affixes Scrap Shield Fragment to Scrap Shield. 00760_ Lgt. Treads destroyed. 00766_ Subatomizers dissect the Disposable Heat Sink. 00772_ PN-SF4(R) destroyed. Map ----- +----------------------------------------------------+ | ???????????????????????????????## ??????###????? | | ???????????????????????????????? #?????## ##???? | | ????????????????????????????????# ??#### ##??? | | ???????????????????????????????## ??## " ###? | | ???????????????????????????????# ### # ## | | ???????????????????????????????# # # ## # | | ???????????????????????????????# " ## # | | ?????????????????????????????#### # """ ### ## | | ????????????????????????????## # # " ### ##? | | ????????????????????????????# ### #### | | ????????????????????????????# """ " | | ????????????????????????????## ### " #"" "" | | ?????????????????????????????## ## ####" | | ??????????????????????????????## ## #"# | | ???????????????????????????????# ### #### | | ???????????????????????????????# ## " ## ## | | ???????????????????????????????## ## "" ## | | ???????????????##??????????????## ### "" ## | | ???????????????# ???????????###O "### """" ## | | ???????????????# ###????#### "#### """ """"## | | ????????????????#< & ??## ## " """""# | | ???????????????## <<<#?# ## | | ???????????????# % %;### ### = #### | | ????????????????# < % R # # ### | | ????????????????# ; ! | | ?????????????? <